fUSD/lending_fUSD_20241001
["ID","MTS","AMOUNT","RATE_DAILY","PERIOD"]
[339670419,1727820781915,-1709.97,0.00039726,120]
[339670420,1727820781926,-2022.15,0.00039726,120]
[339670421,1727820781936,-1933.11,0.00039726,120]
[339670422,1727820781947,-595.71,0.00039726,120]
[339670423,1727820781957,-1560.47,0.00039726,120]
[339670424,1727820781968,-3847.15,0.00039726,120]
[339670425,1727820781977,-500.0,0.00039726,120]
[339670426,1727820781987,-1415.25,0.00039726,120]
[339670427,1727820781997,-804.68,0.00039726,120]
[339670428,1727820782007,-670.45,0.00039726,120]
[339670429,1727820782017,-556.97,0.00039726,120]
[339670430,1727820782027,-1420.1,0.00039726,120]
[339670431,1727820782037,-500.0,0.00039726,7]
[339670432,1727820782049,-2451.79,0.00039726,120]
[339670433,1727820782059,-500.0,0.00039726,120]
[339670434,1727820782069,-837.57,0.00039726,120]
[339670435,1727820782080,-5533.52,0.00039726,120]
[339670436,1727820782091,-1738.11,0.00039726,120]
[339670437,1727820782101,-980.72,0.00039726,120]
[339670438,1727820782111,-214.91559664,0.00039726,120]
[339670439,1727820782121,-5000.0,0.00039729,30]
[339670440,1727820782131,-5000.0,0.00039743,30]
[339670441,1727820782141,-150.0,0.00039764,120]
[339670442,1727820782150,-5000.0,0.00039775,30]
[339670443,1727820782161,-1014.9065803,0.0003979,20]
[339670444,1727820782171,-5000.0,0.00039794,30]
[339670445,1727820782180,-411.0,0.00039796,90]
[339670446,1727820782191,-8138.73904196,0.000398,90]
[339670447,1727820782200,-6798.14855494,0.000398,120]
[339670448,1727820782210,-145973.19112458,0.000398,60]
[339670449,1727820783585,-175.51,0.00012884,2]
[339670450,1727820783594,-175.51,0.0001356,2]
[339670451,1727820783603,-151.0,0.000138,2]
[339670452,1727820783613,-151.0,0.000139,2]
[339670453,1727820783622,-175.51,0.00014308,2]
[339670454,1727820783631,-151.0,0.00028364,7]
[339670455,1727820783642,-151.0,0.0003,7]
[339670456,1727820783651,-266.165598,0.00033,7]
[339670457,1727820783664,-533.85,0.00033214,2]
[339670458,1727820783674,-358.38,0.00033214,2]
[339670459,1727820783683,-500.0,0.00039726,120]
[339670460,1727820783692,-6787.03,0.00039726,120]
[339670461,1727820783702,-65009.36524898,0.000398,60]
[339670462,1727820783713,-792.73224283,0.000398,60]
[339670463,1727820783725,-1470.51803953,0.000398,60]
[339670464,1727820783736,-711.38074383,0.000398,60]
[339670465,1727820783748,-3338.58727615,0.000398,60]
[339670466,1727820783760,-126916.73750985,0.000398,60]
[339670467,1727820783771,-1215.30012531,0.000398,60]
[339670468,1727820783782,-78229.67342884,0.000398,60]
[339670469,1727820783794,-264.06840755,0.000398,60]
[339670470,1727820783806,-601.3007,0.000398,60]
[339670471,1727820783821,-3121.61854213,0.000398,60]
[339670472,1727820783832,-7290.30369597,0.000398,60]
[339670473,1727820783848,-1201.51934629,0.000398,60]
[339670474,1727820783859,-2972.76302513,0.000398,60]
[339670475,1727820783871,-2729.66355406,0.000398,60]
[339670476,1727820783882,-6770.28999999,0.000398,60]
[339670477,1727820783893,-704.85845544,0.000398,60]
[339670478,1727820783904,-3417.34393201,0.000398,60]
[339670479,1727820783923,-633.68518401,0.000398,60]
[339670480,1727820783934,-2289.91559988,0.000398,60]
[339670481,1727821263123,15000.0,0.0001,2]
[339670509,1727821831850,-150.0,0.00010898,2]
[339670511,1727821831860,-300.0,0.00010899,2]
[339670513,1727821831872,-1592.89895978,0.00010899,2]
[339670515,1727821831884,-1719.83320628,0.00010899,2]
[339670516,1727821831969,-6098.3,0.00010899,2]
[339670517,1727821831982,-3290.66034891,0.00010899,2]
[339670518,1727821831993,-800.0,0.00010899,2]
[339670519,1727821832013,-1974.13736734,0.00010899,2]
[339670520,1727821832024,-9790.36331889,0.00010899,2]
[339670540,1727821837809,-6600.0,0.00010899,2]
[339670541,1727821837820,-1930.5889988,0.00010899,2]
[339670542,1727821837830,-4389.6255,0.00010899,2]
[339670543,1727821837839,-3997.71,0.000109,2]
[339670545,1727821837849,-4182.68752279,0.000109,2]
[339670546,1727821837858,-492.802,0.000109,2]
[339670547,1727821837868,-156.79,0.00010959,2]
[339670548,1727821837877,-163.56,0.00010959,2]
[339670549,1727821837887,-2270.0,0.00010999,2]
[339670550,1727821837896,-150.0,0.00011,2]
[339670551,1727821837905,-280546.71472675,0.00011,2]
[339670552,1727821837915,-250.0,0.00011,2]
[339670553,1727821837924,-255.0,0.00011944,2]
[339670554,1727821837934,-319.88,0.000128,2]
[339670555,1727821837943,-1155.8,0.000128,2]
[339670556,1727821837958,-262.63293722,0.00012873,2]
[339670557,1727821837971,-154.05,0.0001289,2]
[339670558,1727821837980,-230.77454531,0.00012899,2]
[339670559,1727821837990,-499.99,0.00012899,2]
[339670560,1727821837999,-32372.1855081,0.000129,2]
[339670561,1727821838013,-40443.33033266,0.000129,2]
[339670562,1727821838043,-1273.63974933,0.000129,2]
[339670563,1727821838067,-944.18934277,0.000129,2]
[339670564,1727821838079,-633.04703007,0.000129,2]
[339670565,1727821838090,-9681.01263141,0.000129,2]
[339670566,1727821838102,-918.84607546,0.000129,2]
[339670570,1727821839902,-780.96545332,0.000129,2]
[339670571,1727821839914,-610.787366,0.000129,2]
[339670572,1727821839926,-1653.67272979,0.000129,2]
[339670573,1727821839937,-96904.15840643,0.000129,2]
[339670574,1727821839953,-1469.6911387,0.000129,2]
[339670575,1727821839969,-1777.7292,0.000129,2]
[339670576,1727821839987,-2298.40162838,0.000129,2]
[339670577,1727821839998,-4275.65912043,0.000129,2]
[339670579,1727821840011,-4019.09127962,0.000129,2]
[339670581,1727821840022,-315.6,0.000129,2]
[339670625,1727821843592,-782.4782933,0.000129,2]
[339670626,1727821843640,-29142.31862841,0.000129,2]
[339670627,1727821843651,-17425.3167448,0.000129,2]
[339670628,1727821843662,-16268.07293523,0.000129,2]
[339670629,1727821845840,-16682.80522336,0.000129,2]
[339670630,1727821845851,-9831.76687634,0.000129,2]
[339670631,1727821845863,-8179.73972213,0.000129,2]
[339670632,1727821845874,-4511.90414,0.000129,2]
[339670633,1727821845885,-549.96057904,0.000129,2]
[339670634,1727821845896,-1139.9999995,0.000129,2]
[339670635,1727821846064,-268.71844669,0.000129,2]
[339670638,1727821954833,1284.71,0.00021443,120]
[339670652,1727823032106,-185.90686756,0.000108,2]
[339670653,1727823032115,-539.55726578,0.000109,2]
[339670654,1727823032126,-260.91249768,0.000109,2]
[339670655,1727823032163,-1738.13713802,0.000109,2]
[339670656,1727823032284,-155.48549852,0.000109,2]
[339670657,1727823032293,-156.22,0.00010959,2]
[339670658,1727823032303,-166.69,0.000112,2]
[339670659,1727823032312,-150.0,0.00012767,2]
[339670660,1727823032322,-150.0,0.00012799,2]
[339670661,1727823032332,-1116.47181711,0.000128,2]
[339670662,1727823032344,-3989.45713517,0.000128,2]
[339670663,1727823032355,-13495.05892328,0.000128,2]
[339670670,1727823032581,-453.51,0.000128,2]
[339670671,1727823032593,-592.92912444,0.000128,2]
[339670672,1727823032602,-265.23478509,0.000128,2]
[339670674,1727823038099,-546.52826524,0.000128,2]
[339670675,1727823038111,-132.38094967,0.000128,2]
[339670676,1727823038120,-214.5121,0.000128,2]
[339670677,1727823038129,-1727.4821,0.000128,2]
[339670678,1727823038139,-4007.92485033,0.000128,2]
[339670679,1727823038150,-4615.51555747,0.000128,2]
[339670680,1727823038160,-256.4243,0.000128,2]
[339670681,1727823038169,-263.87532861,0.00012843,2]
[339670682,1727823038180,-158.43442185,0.00012843,2]
[339670683,1727823038189,-3250.20073155,0.0001289,2]
[339670684,1727823038200,-724.97184001,0.0001289,2]
[339670685,1727823038212,-2625.61028629,0.0001289,2]
[339670686,1727823038221,-352.14341371,0.0001289,2]
[339670687,1727823038232,-147.84658629,0.0001289,2]
[339670688,1727823038242,-5077.11404005,0.000129,2]
[339670689,1727823038272,-10729.9312,0.000129,2]
[339670691,1727823038284,-1503.10643675,0.000129,2]
[339670693,1727823038295,-425.4,0.000129,2]
[339670695,1727823038314,-37010.14324801,0.000129,2]
[339670696,1727823038738,-273.87550485,0.000129,2]
[339670698,1727823039983,-3297.81886019,0.000129,2]
[339670700,1727823039995,-6981.09999818,0.000129,2]
[339670703,1727823040043,-93887.53637394,0.000129,2]
[339670704,1727823040056,-337.04176787,0.000129,2]
[339670705,1727823040068,-2230.96849971,0.000129,2]
[339670706,1727823040107,-449.03088406,0.000129,2]
[339670707,1727823040119,-685.08301683,0.000129,2]
[339670708,1727823040131,-418.43404489,0.000129,2]
[339670709,1727823040142,-21033.57546785,0.000129,2]
[339670710,1727823040153,-16959.17918805,0.000129,2]
[339670711,1727823040166,-4302.89567398,0.000129,2]
[339670712,1727823040177,-8865.05047589,0.000129,2]
[339670713,1727823040189,-19495.584,0.000129,2]
[339670714,1727823040230,-1072.66280005,0.000129,2]
[339670715,1727823040242,-412.39,0.000129,2]
[339670745,1727823042303,150.0,0.0001002,2]
[339670770,1727823043213,-150.02,0.000122,2]
[339670771,1727823043224,-480.97339394,0.000129,2]
[339670772,1727823043237,-549.12224999,0.000129,2]
[339670773,1727823043248,-6180.65784,0.000129,2]
[339670776,1727823046065,-674.5000605,0.000129,2]
[339670777,1727823046116,-152258.00000022,0.000129,2]
[339670783,1727823982858,196.34,9.589e-05,2]
[339670798,1727824220898,200.0,9.541e-05,2]
[339670803,1727824232200,-1466.14126311,0.000106,2]
[339670804,1727824232211,-2353.18393689,0.000106,2]
[339670805,1727824232221,-161.96,0.00010959,2]
[339670806,1727824232230,-156.79,0.00010959,2]
[339670807,1727824232239,-250.0,0.00011,2]
[339670808,1727824232249,-186.46,0.000122,2]
[339670809,1727824232258,-60.11635764,0.00012823,2]
[339670810,1727824232269,-329.14260328,0.00012823,2]
[339670811,1727824232280,-33.05078954,0.00012823,2]
[339670812,1727824232289,-266.94921046,0.000129,2]
[339670813,1727824232383,-6485.76551206,0.000129,2]
[339670814,1727824232395,-682.19,0.000129,2]
[339670820,1727824238198,-33119.6434447,0.000129,2]
[339670821,1727824238256,-329.76559334,0.000129,2]
[339670822,1727824238267,-565.54412118,0.000129,2]
[339670823,1727824238278,-2926.27464045,0.000129,2]
[339670824,1727824238340,-1163.17081791,0.000129,2]
[339670825,1727824238349,-300.0,0.00013,2]
[339670826,1727824238358,-150.99,0.00014999,2]
[339670827,1727824238367,-499.99,0.00014999,2]
[339670828,1727824238377,-150.0,0.00014999,2]
[339670829,1727824238386,-200.0,0.00015,2]
[339670830,1727824238395,-200.0,0.00015,2]
[339670831,1727824238404,-200.0,0.00015,2]
[339670832,1727824238414,-200.0,0.00015,2]
[339670833,1727824238423,-200.0,0.00015,2]
[339670834,1727824238432,-200.0,0.00015,2]
[339670835,1727824238441,-200.0,0.00015,2]
[339670836,1727824238452,-200.0,0.00015,2]
[339670837,1727824238462,-200.0,0.00015,2]
[339670839,1727824238471,-200.0,0.00015,2]
[339670841,1727824238480,-200.0,0.00015,2]
[339670843,1727824238491,-200.0,0.00015,2]
[339670845,1727824238501,-200.0,0.00015,2]
[339670847,1727824238511,-200.0,0.00015,2]
[339670849,1727824238522,-200.0,0.00015,2]
[339670851,1727824238532,-200.0,0.00015,2]
[339670853,1727824238543,-200.0,0.00015,2]
[339670855,1727824238553,-200.0,0.00015,2]
[339670857,1727824238566,-200.0,0.00015,2]
[339670859,1727824238576,-200.0,0.00015,2]
[339670861,1727824238586,-200.0,0.00015,2]
[339670863,1727824238596,-200.0,0.00015,2]
[339670865,1727824238606,-200.0,0.00015,2]
[339670867,1727824238615,-200.0,0.00015,2]
[339670869,1727824238625,-97.51201632,0.00015,2]
[339670872,1727824238637,-102.48798368,0.00015,2]
[339670874,1727824238646,-200.0,0.00015,2]
[339670876,1727824238656,-200.0,0.00015,2]
[339670878,1727824238666,-200.0,0.00015,2]
[339670880,1727824238676,-200.0,0.00015,2]
[339670882,1727824238686,-200.0,0.00015,2]
[339670884,1727824238695,-200.0,0.00015,2]
[339670886,1727824238705,-200.0,0.00015,2]
[339670888,1727824238715,-200.0,0.00015,2]
[339670890,1727824238725,-200.0,0.00015,2]
[339670892,1727824238734,-200.0,0.00015,2]
[339670894,1727824238743,-200.0,0.00015,2]
[339670896,1727824238753,-32.99879232,0.00015,2]
[339670898,1727824238769,-1559.00120768,0.00015,2]
[339670900,1727824238778,-7374.25899232,0.00015,2]
[339670968,1727824240240,-883.29999,0.00015,2]
[339670969,1727824240253,-1110.44101768,0.00015,2]
[339670970,1727824240263,-257.32457563,0.00015,2]
[339670971,1727824240276,-92.67542437,0.00015,2]
[339670972,1727824240296,-150.0,0.00015,15]
[339670973,1727824240306,-692.9,0.00015,2]
[339670974,1727824240318,-1391.106354,0.00016,7]
[339670975,1727824240327,-519.22497091,0.00016,2]
[339670976,1727824240340,-1480.77502909,0.00016,2]
[339670977,1727824240349,-2000.0,0.0001601,2]
[339670978,1727824240359,-23.36927091,0.0001602,2]
[339670979,1727824240371,-3488.16629109,0.0001602,2]
[339670980,1727824240380,-255.0,0.00016124,2]
[339670981,1727824240390,-125.03370891,0.00016541,2]
[339670982,1727824240406,-38.82629109,0.00016541,2]
[339670983,1727824240416,-400.0,0.00017,2]
[339670984,1727824240426,-1624.25913959,0.00017205,2]
[339670985,1727824240437,-1227.54171992,0.00017205,2]
[339670987,1727824240449,-862.20476281,0.00017205,2]
[339670988,1727824240459,-559.38,0.000178,7]
[339670989,1727824240468,-146.7107655,0.00018191,2]
[339670990,1727824240480,-28.1722345,0.00018191,2]
[339670991,1727824240490,-150.0,0.00018191,2]
[339670992,1727824240500,-150.0,0.00018332,2]
[339670993,1727824240510,-150.0,0.00018356,2]
[339670994,1727824240520,-159.96335978,0.00018924,2]
[339670995,1727824240595,-9.65664022,0.00018924,2]
[339670996,1727824240604,-450.0,0.00019,2]
[339670997,1727824240614,-207.99,0.00019172,2]
[339670998,1727824240623,-175.51,0.00019452,2]
[339670999,1727824240633,-900.0,0.0002,20]
[339671001,1727824240643,-2000.0,0.0002,2]
[339671004,1727824240653,-2000.0,0.0002001,2]
[339671006,1727824240663,-613.07972104,0.0002002,2]
[339671008,1727824240674,-3148.84035996,0.0002002,2]
[339671010,1727824240684,-168.96,0.00020218,2]
[339671012,1727824240694,-155.79,0.00020396,2]
[339671014,1727824240704,-231.45964004,0.00020396,2]
[339671015,1727824240715,-18.54035996,0.00020396,2]
[339671016,1727824240725,-304.02116398,0.00020405,2]
[339671021,1727824243258,-150.0,0.00020405,2]
[339671022,1727824243268,-227.11693109,0.00020405,2]
[339671023,1727824243308,-1079.31918,0.00020405,2]
[339671025,1727824243362,-457.46219434,0.00020405,2]
[339671027,1727824243373,-265.6000002,0.00020405,2]
[339671028,1727824243645,-653.31270692,0.00020405,2]
[339671034,1727824246208,-522.01898272,0.00020405,2]
[339671035,1727824246268,-491.14884075,0.00020405,2]
[339671036,1727824246277,-155.79,0.00020416,2]
[339671037,1727824246286,-21.36959071,0.00020437,2]
[339671038,1727824246297,-134.42040929,0.00020437,2]
[339671039,1727824246306,-154.73,0.00020449,2]
[339671040,1727824246315,-155.79,0.00020457,2]
[339671041,1727824246324,-175.51,0.00020473,2]
[339671042,1727824246333,-155.79,0.00020477,2]
[339671043,1727824246342,-155.79,0.00020498,2]
[339671044,1727824246352,-500.0,0.00020529,2]
[339671045,1727824246361,-162.22,0.00020559,2]
[339671046,1727824246370,-170.52,0.00020563,2]
[339671047,1727824246379,-942.62,0.00020563,2]
[339671048,1727824246388,-200.0,0.00020563,2]
[339671049,1727824246397,-150.0,0.00020624,2]
[339671050,1727824246406,-439.76,0.00020628,2]
[339671051,1727824246415,-250.0,0.00020725,2]
[339671052,1727824246424,-250.0,0.0002077,2]
[339671053,1727824246433,-150.68,0.00020793,2]
[339671054,1727824246442,-1254.41,0.00020833,2]
[339671055,1727824246451,-7761.09636702,0.00020889,2]
[339671056,1727824246460,-34224.630312,0.00020925,2]
[339671058,1727824246765,-3700.0,0.00020925,2]
[339671059,1727824246775,-416.0689448,0.00020925,2]
[339671060,1727824246787,-973.24910627,0.00020925,2]
[339671061,1727824246798,-343.53915486,0.00020925,2]
[339671062,1727824246813,-177.71248207,0.00020925,2]
[339671063,1727824246822,-429.88371793,0.00020925,2]
[339671076,1727825432936,-496.230637,0.00010725,2]
[339671077,1727825432946,-201.80285421,0.00010779,2]
[339671078,1727825432955,-300.0,0.00010879,2]
[339671079,1727825432964,-580.52407694,0.0001088,2]
[339671080,1727825433026,-258.76851609,0.0001088,2]
[339671081,1727825433038,-6443.90937311,0.0001088,2]
[339671082,1727825433065,-822.5,0.0001088,2]
[339671083,1727825433077,-1817.0535657,0.0001088,2]
[339671084,1727825433143,-319.86038199,0.0001088,2]
[339671086,1727825435616,-397.08384421,0.00010779,2]
[339671115,1727825438484,-849.39240122,0.00010779,2]
[339671116,1727825438541,-1130.48424039,0.00010779,2]
[339671117,1727825438551,-85.53768397,0.0001088,2]
[339671125,1727825440450,-304.5,0.0001088,2]
[339671126,1727825440462,-662.66936318,0.0001088,2]
[339671127,1727825440503,-526.41,0.0001088,2]
[339671128,1727825440677,-753.83647302,0.0001088,2]
[339671129,1727825440688,-306.09729367,0.0001088,2]
[339671130,1727825440738,-3835.80015978,0.0001088,2]
[339671131,1727825440750,-3249.95340702,0.0001088,2]
[339671145,1727825443543,-313.75221724,0.0001088,2]
[339671146,1727825443554,-291.59768324,0.0001088,2]
[339671147,1727825443568,-338.94299958,0.0001088,2]
[339671172,1727825446507,-20886.38667323,0.0001088,2]
[339671173,1727825446573,-8699.39488248,0.0001088,2]
[339671174,1727825446582,-162.96,0.00010959,2]
[339671175,1727825446592,-156.22,0.00010959,2]
[339671176,1727825446601,-150.0,0.00010999,2]
[339671177,1727825446610,-250.0,0.00011,2]
[339671178,1727825446619,-8761.37712095,0.00011,2]
[339671179,1727825446634,-4855.4545189,0.00011,2]
[339671180,1727825446644,-12888.63290902,0.00011,2]
[339671221,1727826631578,-172.89819125,0.00010659,2]
[339671223,1727826631588,-166.14407703,0.00010859,2]
[339671225,1727826631598,-367.33056476,0.000109,2]
[339671227,1727826631609,-570.09,0.000109,2]
[339671229,1727826631620,-950.2369532,0.000109,2]
[339671231,1727826631630,-177.82,0.00010959,2]
[339671233,1727826631639,-161.96,0.00010959,2]
[339671235,1727826631649,-2033.16826601,0.00010959,2]
[339671237,1727826631658,-4.77604618,0.00011,2]
[339671239,1727826631669,-1552.423596,0.00011,2]
[339671242,1727826631685,-600.81924,0.00011,2]
[339671245,1727826631710,-358.9004243,0.00011,2]
[339671247,1727826631719,-150.0,0.00011,2]
[339671249,1727826631729,-39.26279154,0.00011,2]
[339671251,1727826631741,-110.73720846,0.00011,2]
[339671252,1727826631755,-150.0,0.00011,2]
[339671253,1727826631764,-150.0,0.00011,2]
[339671254,1727826631774,-150.0,0.00011,2]
[339671255,1727826631784,-97.51279154,0.00011,2]
[339671256,1727826631795,-128.30263108,0.00011,2]
[339671257,1727826631804,-510.2323333,0.00011284,2]
[339671258,1727826631824,-270.3576667,0.00011284,2]
[339671259,1727826631834,-232.27945729,0.00011317,2]
[339671260,1727826631845,-190.03029317,0.00011317,2]
[339671261,1727826631855,-275.11,0.00011475,2]
[339671262,1727826631864,-4246.95697286,0.00012,2]
[339671263,1727826631874,-250.0,0.00012126,2]
[339671264,1727826631883,-499.99,0.00012126,2]
[339671265,1727826631893,-150.0,0.00012197,2]
[339671266,1727826631902,-184.73,0.00012259,2]
[339671267,1727826631911,-664.92,0.00012343,2]
[339671268,1727826631920,-500.0,0.00012367,2]
[339671269,1727826631931,-250.0,0.00012431,2]
[339671270,1727826631941,-304.79,0.00012431,2]
[339671271,1727826631951,-1164.86783616,0.00012488,2]
[339671272,1727826631993,-40.60216384,0.00012488,2]
[339671273,1727826632002,-4449.98807565,0.00012522,2]
[339671274,1727826632015,-406.77852015,0.00012522,2]
[339671275,1727826632029,-943.09082566,0.00012522,2]
[339671276,1727826632040,-2109.43741355,0.00012522,2]
[339671277,1727826632054,-301.2900896,0.00012522,2]
[339671278,1727826632084,-924.98507539,0.00012522,2]
[339671279,1727826632094,-1804.72,0.00012626,2]
[339671280,1727826632103,-299.99,0.00012626,2]
[339671281,1727826632112,-1000.0,0.00012684,2]
[339671282,1727826632121,-199.83,0.000127,2]
[339671283,1727826632131,-406.38,0.00012765,2]
[339671284,1727826632140,-304.24,0.000128,2]
[339671285,1727826632151,-1010.48,0.000128,2]
[339671286,1727826632161,-300.0,0.00013,2]
[339671287,1727826632170,-250.0,0.00013022,2]
[339671288,1727826632180,-170.55,0.00013057,2]
[339671289,1727826632190,-2211.50212101,0.00013073,2]
[339671290,1727826632199,-6915.37822668,0.00013083,2]
[339671291,1727826637528,-1177.0,0.00012823,2]
[339671292,1727826637539,-823.0,0.00012823,2]
[339671293,1727826637548,-9312.65999346,0.00013083,2]
[339671294,1727826637559,-7671.96177986,0.00013083,2]
[339671295,1727826637569,-172.89819125,0.00013296,2]
[339671296,1727826637578,-155.02,0.00013396,2]
[339671297,1727826637588,-802.28,0.00013398,2]
[339671298,1727826637597,-200.0,0.00013634,2]
[339671299,1727826637607,-295.63,0.00013656,2]
[339671300,1727826637616,-500.0,0.00013699,2]
[339671301,1727826637626,-200.0,0.00013699,2]
[339671302,1727826637635,-150.0,0.00013699,2]
[339671303,1727826637645,-275.11,0.00013739,2]
[339671304,1727826637655,-200.0,0.00013819,2]
[339671305,1727826637664,-1600.0,0.000139,5]
[339671306,1727826637673,-5758.58092101,0.00013915,2]
[339671307,1727826637685,-265.90277871,0.00013915,2]
[339671308,1727826637712,-273.2828905,0.00013915,2]
[339671309,1727826637723,-594.5,0.00013915,2]
[339671310,1727826637735,-108.22717302,0.00013915,2]
[339671311,1727826637745,-638.95,0.00013971,3]
[339671312,1727826637754,-319.48,0.00013971,3]
[339671313,1727826637763,-8.28268148,0.00013971,3]
[339671314,1727826637776,-151.45731852,0.00013971,3]
[339671315,1727826637786,-206.87753312,0.00013971,3]
[339671316,1727826637801,-272.36246688,0.00013971,3]
[339671317,1727826637810,-2994.34,0.00013974,2]
[339671318,1727826637819,-2994.34,0.00013978,2]
[339671319,1727826637835,-8481.28847138,0.00013981,2]
[339671320,1727826637847,-464.49215407,0.00013981,2]
[339671321,1727826637858,-6628.30439943,0.00013981,2]
[339671323,1727826637869,-450.87290596,0.00013981,2]
[339671325,1727826637879,-592.08569065,0.00013981,2]
[339671327,1727826637895,-1851.34130064,0.00013981,2]
[339671329,1727826637906,-729.82228752,0.00013981,2]
[339671331,1727826637917,-289.4002629,0.00013981,2]
[339671333,1727826637929,-309.671942,0.00013981,2]
[339671336,1727826637955,-10620.99461283,0.00013981,2]
[339671338,1727826637966,-2183.16426548,0.00013981,2]
[339671340,1727826637976,-281.55,0.00013981,2]
[339671347,1727826639840,-510362.21197447,0.00013981,2]
[339671370,1727826642579,-4783.16,0.00013981,2]
[339671385,1727826642763,-298.72,0.00013981,2]
[339671386,1727826642776,-6020.00259753,0.00013981,2]
[339671387,1727826642788,-511.74477419,0.00013981,2]
[339671388,1727826642814,-3011.29539032,0.00013981,2]
[339671389,1727826642828,-2725.86229824,0.00013981,2]
[339671390,1727826642872,-3664.28065587,0.00013981,2]
[339671391,1727826642885,-3397.76989014,0.00013981,2]
[339671392,1727826642897,-1269.05719409,0.00013981,2]
[339671393,1727826642911,-18847.96200157,0.00013981,2]
[339671394,1727826642925,-2829.58704795,0.00013981,2]
[339671395,1727826642937,-769.133491,0.00013981,2]
[339671396,1727826642959,-8878.29250667,0.00013981,2]
[339671398,1727826642969,-2994.34,0.00013982,2]
[339671400,1727826642981,-2994.34,0.00013985,2]
[339671401,1727826642991,-2994.34,0.00013989,2]
[339671402,1727826643002,-500.0,0.00013989,2]
[339671403,1727826643014,-500.0,0.00013989,2]
[339671404,1727826643025,-500.0,0.00013989,2]
[339671405,1727826643037,-220.46349832,0.00013989,2]
[339671406,1727826643048,-2994.34,0.00013993,2]
[339671407,1727826643059,-274.01627637,0.00013996,2]
[339671408,1727826643073,-2720.32372363,0.00013996,2]
[339671410,1727826643084,-2994.34,0.00014,2]
[339671412,1727826643095,-2994.34,0.00014004,2]
[339671413,1727826643106,-2994.34,0.00014007,2]
[339671414,1727826643118,-2994.34,0.00014011,2]
[339671415,1727826643128,-2994.34,0.00014015,2]
[339671417,1727826643140,-2994.34,0.00014018,2]
[339671419,1727826643151,-2994.34,0.00014022,2]
[339671421,1727826643162,-151.0,0.00014022,2]
[339671423,1727826643174,-395.876704,0.00014022,2]
[339671426,1727826643186,-395.876704,0.00014022,2]
[339671427,1727826643198,-151.0,0.00014022,2]
[339671428,1727826643209,-2994.34,0.00014026,2]
[339671429,1727826643221,-2994.34,0.00014029,2]
[339671430,1727826643232,-2994.34,0.00014033,2]
[339671431,1727826643243,-2840.06857901,0.00014037,2]
[339671432,1727826643257,-154.27142099,0.00014037,2]
[339671433,1727826643270,-1055.72857901,0.0001404,2]
[339671434,1727826643283,-1938.61142099,0.0001404,2]
[339671435,1727826643294,-2994.34,0.00014044,2]
[339671436,1727826643306,-150.0,0.00014059,2]
[339671437,1727826643317,-174.68,0.00014066,2]
[339671438,1727826643327,-3987.61857901,0.00014212,2]
[339671439,1727826643341,-1836.32055326,0.00014212,2]
[339671440,1727826643360,-5914.31086773,0.00014212,2]
[339671441,1727826643372,-151.0,0.00014212,2]
[339671442,1727826643384,-151.0,0.00014212,2]
[339671443,1727826643396,-151.0,0.00014212,2]
[339671444,1727826643407,-188.146694,0.00014212,2]
[339671445,1727826643420,-188.146694,0.00014212,2]
[339671446,1727826643431,-151.0,0.00014212,2]
[339671447,1727826643442,-151.0,0.00014212,2]
[339671448,1727826643452,-151.0,0.00014212,2]
[339671449,1727826643463,-1839.634758,0.00014212,2]
[339671450,1727826643473,-1839.634758,0.00014212,2]
[339671451,1727826643484,-151.0,0.00014212,2]